[Event "POL-chT DMP Ekstraliga 2019"]
[Site "Katowice"]
[Date "2019.09.01"]
[Round "5.5"]
[White "Kantans, Toms"]
[Black "Plat, Vojtech"]
[Result "1/2-1/2"]
[ECO "B31"]
[WhiteElo "2490"]
[BlackElo "2561"]
[Annotator "ChessBase"]
[PlyCount "90"]
[EventDate "2019.08.28"]
[EventType "team-tourn"]
[EventCountry "POL"]
[SourceTitle "playchess.com"]
[Source "ChessBase"]
[SourceQuality "1"]
[TimeControl "40/5400+30:1800+30"]

1. e4 {[%emt 0:00:00]} c5 {[%emt 0:00:00]} 2. Nf3 {[%emt 0:00:00]} Nc6 {[%emt 0:00:00]} 3. Bb5 {[%emt 0:00:04]} g6 {[%emt 0:00:00]} 4. c3 {[%emt 0:00:45]} Bg7 {[%emt 0:00:15]} 5. d4 {[%emt 0:00:28]} cxd4 {[%emt 0:00:09]} 6. cxd4 {[%emt 0:00:06]} Nf6 {[%emt 0:06:58]} 7. Nc3 {[%emt 0:03:21]} Qa5 {[%emt 0:01:47]} 8. Qe2 {[%emt 0:10:39]} a6 {[%emt 0:08:26]} 9. Bxc6 {[%emt 0:02:03]} dxc6 {[%emt 0:00:33]} 10. h3 {[%emt 0:00:50]} c5 {[%emt 0:02:39]} 11. O-O {[%emt 0:06:08]} cxd4 {[%emt 0:00:05]} 12. Nxd4 {[%emt 0:00:08]} O-O {[%emt 0:00:06]} 13. Be3 {[%emt 0:06:31]} Bd7 {[%emt 0:05:04]} 14. Rac1 {[%emt 0:07:40]} Bb5 {[%emt 0:07:12]} 15. Ndxb5 {[%emt 0:13:22]} axb5 {[%emt 0:00:28]} 16. e5 {[%emt 0:00:08]} Nd7 {[%emt 0:00:27]} 17. e6 {[%emt 0:13:52]} fxe6 {[%emt 0:00:51]} 18. Rfd1 {[%emt 0:02:14]} Nf6 {[%emt 0:03:05]} 19. Bc5 {[%emt 0:03:06]} b4 {[%emt 0:01:17]} 20. Nb5 {[%emt 0:01:32]} Rf7 {[%emt 0:04:17]} 21. Nd4 {[%emt 0:06:24]} Qa6 {[%emt 0:06:57]} 22. Qxe6 {[%emt 0:03:23]} Qxe6 {[%emt 0:00:39]} 23. Nxe6 {[%emt 0:00:08]} Ne4 {[%emt 0:00:20]} 24. Bxb4 {[%emt 0:01:10]} Bxb2 {[%emt 0:03:56]} 25. Rc2 {[%emt 0:04:22]} Rf6 {[%emt 0:01:34]} 26. Nc7 {[%emt 0:03:14]} Rxa2 {[%emt 0:04:48]} 27. Nd5 {[%emt 0:00:05]} Rfa6 {[%emt 0:00:08]} 28. Re2 {[%emt 0:06:52]} Nf6 {[%emt 0:03:58]} 29. Nxe7+ {[%emt 0:00:12]} Kg7 {[%emt 0:01:51]} 30. Nc8 {[%emt 0:04:45]} Ra1 {[%emt 0:00:23]} 31. Rxa1 {[%emt 0:00:33]} Rxa1+ {[%emt 0:00:07]} 32. Kh2 {[%emt 0:00:02]} Rb1 {[%emt 0:01:39]} 33. Re7+ {[%emt 0:01:31]} Kg8 {[%emt 0:00:02]} 34. Rxb7 {[%emt 0:00:48]} Nd5 {[%emt 0:02:27]} 35. Ne7+ {[%emt 0:00:29]} Nxe7 {[%emt 0:00:01]} 36. Rxe7 {[%emt 0:00:19]} Bd4 {[%emt 0:00:04]} 37. Be1 {[%emt 0:00:30]} Rb2 {[%emt 0:01:29]} 38. f4 {[%emt 0:00:40]} Bc5 {[%emt 0:01:06]} 39. Re4 {[%emt 0:00:30]} Kf7 {[%emt 0:00:13]} 40. Bc3 {[%emt 0:00:00]} Rb1 {[%emt 0:00:00]} 41. g4 {[%emt 0:06:20]} Bd6 {[%emt 0:02:46]} 42. Kg2 {[%emt 0:04:04]} Rb3 {[%emt 0:00:05]} 43. Rc4 {[%emt 0:08:36]} Ke6 {[%emt 0:00:40]} 44. Bg7 {[%emt 0:00:56]} Rb4 {[%emt 0:00:19]} 45. Rxb4 {[%emt 0:04:23]} Bxb4 {[%emt 0:00:07]} 1/2-1/2

[Event "POL-chT DMP Ekstraliga 2019"]
[Site "Katowice"]
[Date "2019.09.01"]
[Round "5.8"]
[White "Shevchenko, Kirill"]
[Black "Leniart, Arkadiusz"]
[Result "1/2-1/2"]
[ECO "C76"]
[WhiteElo "2556"]
[BlackElo "2488"]
[Annotator "ChessBase"]
[PlyCount "121"]
[EventDate "2019.08.28"]
[EventType "team-tourn"]
[EventCountry "POL"]
[SourceTitle "playchess.com"]
[Source "ChessBase"]
[SourceQuality "1"]
[TimeControl "40/5400+30:1800+30"]

1. e4 {[%emt 0:00:00]} e5 {[%emt 0:00:00]} 2. Nf3 {[%emt 0:00:00]} Nc6 {[%emt 0:00:00]} 3. Bb5 {[%emt 0:00:00]} g6 {[%emt 0:00:00]} 4. c3 {[%emt 0:02:22]} a6 {[%emt 0:18:34]} 5. Ba4 {[%emt 0:00:20]} d6 {[%emt 0:01:07]} 6. d4 {[%emt 0:04:45]} Bd7 {[%emt 0:01:30]} 7. Bg5 {[%emt 0:12:52]} Be7 {[%emt 0:04:29]} 8. Bxe7 {[%emt 0:10:14]} Qxe7 {[%emt 0:03:49]} 9. O-O {[%emt 0:02:14]} Nf6 {[%emt 0:01:27]} 10. Nbd2 {[%emt 0:02:22]} O-O {[%emt 0:01:38]} 11. Re1 {[%emt 0:00:14]} b5 {[%emt 0:06:28]} 12. Bc2 {[%emt 0:11:29]} Nh5 {[%emt 0:04:10]} 13. Qe2 {[%emt 0:08:41]} Qf6 {[%emt 0:10:42]} 14. dxe5 {[%emt 0:06:27]} Nxe5 {[%emt 0:03:16]} 15. Nxe5 {[%emt 0:02:29]} Qxe5 {[%emt 0:04:20]} 16. Nf3 {[%emt 0:02:37]} Qe7 {[%emt 0:01:51]} 17. e5 {[%emt 0:13:40]} Bc6 {[%emt 0:15:38]} 18. Be4 {[%emt 0:04:06]} d5 {[%emt 0:01:03]} 19. Bc2 {[%emt 0:02:01]} Bb7 {[%emt 0:00:05]} 20. Qe3 {[%emt 0:01:35]} f6 {[%emt 0:06:41]} 21. b4 {[%emt 0:02:48]} f5 {[%emt 0:04:26]} 22. Qc5 {[%emt 0:04:00]} Qxc5 {[%emt 0:03:23]} 23. bxc5 {[%emt 0:00:01]} c6 {[%emt 0:00:47]} 24. Nd4 {[%emt 0:00:18]} Kf7 {[%emt 0:01:01]} 25. a4 {[%emt 0:02:12]} Ng7 {[%emt 0:00:43]} 26. f4 {[%emt 0:02:00]} Ne6 {[%emt 0:00:41]} 27. Nxe6 {[%emt 0:00:15]} Kxe6 {[%emt 0:00:06]} 28. Bd3 {[%emt 0:01:17]} Rfb8 {[%emt 0:01:56]} 29. a5 {[%emt 0:02:24]} Bc8 {[%emt 0:00:13]} 30. Rab1 {[%emt 0:00:13]} Ke7 {[%emt 0:00:28]} 31. Kf2 {[%emt 0:00:21]} Be6 {[%emt 0:00:29]} 32. Re3 {[%emt 0:00:48]} h6 {[%emt 0:01:07]} 33. h4 {[%emt 0:00:39]} h5 {[%emt 0:00:48]} 34. Rg3 {[%emt 0:00:12]} Kf7 {[%emt 0:00:11]} 35. Ke3 {[%emt 0:00:06]} Rd8 {[%emt 0:00:25]} 36. Kd4 {[%emt 0:00:05]} Rab8 {[%emt 0:00:09]} 37. Rg5 {[%emt 0:00:17]} Rh8 {[%emt 0:01:01]} 38. Be2 {[%emt 0:00:37]} Rbd8 {[%emt 0:00:18]} 39. Rh1 {[%emt 0:00:13]} Rh6 {[%emt 0:02:00]} 40. Bd3 {[%emt 0:00:00]} Rdh8 {[%emt 0:00:00]} 41. Rg3 {[%emt 0:01:13]} Rb8 {[%emt 0:01:02]} 42. Rb1 {[%emt 0:00:16]} Rhh8 {[%emt 0:00:25]} 43. Rg5 {[%emt 0:00:11]} Rh6 {[%emt 0:00:49]} 44. Bc2 {[%emt 0:00:09]} Rd8 {[%emt 0:00:33]} 45. Rg3 {[%emt 0:00:38]} Rhh8 {[%emt 0:00:15]} 46. Bd1 {[%emt 0:00:10]} Rb8 {[%emt 0:00:23]} 47. Rd3 {[%emt 0:00:12]} Rhd8 {[%emt 0:00:38]} 48. Bf3 {[%emt 0:00:09]} Ke7 {[%emt 0:02:06]} 49. Rb4 {[%emt 0:00:10]} Kd7 {[%emt 0:01:02]} 50. Re3 {[%emt 0:00:20]} Ke7 {[%emt 0:01:29]} 51. Re1 {[%emt 0:00:15]} Rbc8 {[%emt 0:00:43]} 52. Rd1 {[%emt 0:00:12]} Rd7 {[%emt 0:01:00]} 53. Ke3 {[%emt 0:00:06]} Rdd8 {[%emt 0:00:57]} 54. Rdd4 {[%emt 0:00:45]} Rd7 {[%emt 0:00:33]} 55. Kd2 {[%emt 0:00:05]} Rdd8 {[%emt 0:03:05]} 56. Kc2 {[%emt 0:00:04]} Rd7 {[%emt 0:01:21]} 57. Rb1 {[%emt 0:00:48]} Rdd8 {[%emt 0:05:21]} 58. Rbd1 {[%emt 0:00:39]} Rb8 {[%emt 0:00:19]} 59. g3 {[%emt 0:03:51]} Rdc8 {[%emt 0:01:59]} 60. Rb1 {[%emt 0:01:04]} Rd8 {[%emt 0:01:36]} 61. Rb2 {[%emt 0:06:06]} 1/2-1/2

[Event "POL-chT DMP Ekstraliga 2019"]
[Site "Katowice"]
[Date "2019.09.01"]
[Round "5.9"]
[White "Druska, Juraj"]
[Black "Kriebel, Tadeas"]
[Result "1/2-1/2"]
[ECO "B33"]
[WhiteElo "2460"]
[BlackElo "2531"]
[Annotator "ChessBase"]
[PlyCount "52"]
[EventDate "2019.08.28"]
[EventType "team-tourn"]
[EventCountry "POL"]
[SourceTitle "playchess.com"]
[Source "ChessBase"]
[SourceQuality "1"]
[TimeControl "40/5400+30:1800+30"]

1. e4 {[%emt 0:00:00]} c5 {[%emt 0:00:00]} 2. Nf3 {[%emt 0:00:00]} Nc6 {[%emt 0:00:00]} 3. d4 {[%emt 0:00:10]} cxd4 {[%emt 0:00:00]} 4. Nxd4 {[%emt 0:00:05]} Nf6 {[%emt 0:00:00]} 5. Nc3 {[%emt 0:00:05]} e6 {[%emt 0:00:00]} 6. Ndb5 {[%emt 0:00:16]} Bc5 {[%emt 0:00:13]} 7. Nd6+ {[%emt 0:07:36]} Ke7 {[%emt 0:00:16]} 8. Nxc8+ {[%emt 0:13:45]} Rxc8 {[%emt 0:00:59]} 9. Bd3 {[%emt 0:00:08]} a6 {[%emt 0:13:56]} 10. O-O {[%emt 0:02:29]} Ne5 {[%emt 0:05:04]} 11. Qe2 {[%emt 0:03:46]} Qc7 {[%emt 0:10:39]} 12. Kh1 {[%emt 0:01:56]} Nxd3 {[%emt 0:02:25]} 13. cxd3 {[%emt 0:00:52]} Qe5 {[%emt 0:00:55]} 14. f4 {[%emt 0:05:14]} Qh5 {[%emt 0:00:17]} 15. Rf3 {[%emt 0:10:04]} Bd4 {[%emt 0:08:34]} 16. Bd2 {[%emt 0:01:26]} d6 {[%emt 0:02:44]} 17. Raf1 {[%emt 0:04:30]} Rhe8 {[%emt 0:12:56]} 18. Qe1 {[%emt 0:03:15]} Qc5 {[%emt 0:02:25]} 19. e5 {[%emt 0:11:09]} dxe5 {[%emt 0:01:29]} 20. Ne4 {[%emt 0:00:12]} Qd5 {[%emt 0:04:08]} 21. fxe5 {[%emt 0:14:49]} Bxe5 {[%emt 0:01:29]} 22. Bg5 {[%emt 0:00:12]} Rc2 {[%emt 0:03:13]} 23. Qh4 {[%emt 0:03:58]} Kd7 {[%emt 0:07:58]} 24. Bxf6 {[%emt 0:01:42]} gxf6 {[%emt 0:00:07]} 25. Nxf6+ {[%emt 0:01:15]} Bxf6 {[%emt 0:00:09]} 26. Qxf6 {[%emt 0:00:02]} Re7 {[%emt 0:01:27]} 1/2-1/2

[Event "POL-chT DMP Ekstraliga 2019"]
[Site "Katowice"]
[Date "2019.09.01"]
[Round "5.10"]
[White "Simacek, Pavel"]
[Black "Kaczmarek, Aleksander"]
[Result "1-0"]
[ECO "A04"]
[WhiteElo "2479"]
[BlackElo "2389"]
[Annotator "ChessBase"]
[PlyCount "99"]
[EventDate "2019.08.28"]
[EventType "team-tourn"]
[EventCountry "POL"]
[SourceTitle "playchess.com"]
[Source "ChessBase"]
[SourceQuality "1"]
[TimeControl "40/5400+30:1800+30"]

1. Nf3 {[%emt 0:00:00]} g6 {[%emt 0:00:00]} 2. d4 {[%emt 0:00:00]} Bg7 {[%emt 0:00:00]} 3. e4 {[%emt 0:00:25]} c6 {[%emt 0:00:12]} 4. Nc3 {[%emt 0:00:40]} d5 {[%emt 0:00:06]} 5. h3 {[%emt 0:00:10]} dxe4 {[%emt 0:00:06]} 6. Nxe4 {[%emt 0:00:04]} Nd7 {[%emt 0:00:06]} 7. Bc4 {[%emt 0:00:11]} Ngf6 {[%emt 0:00:10]} 8. Nxf6+ {[%emt 0:00:24]} Nxf6 {[%emt 0:00:05]} 9. O-O {[%emt 0:00:06]} O-O {[%emt 0:00:03]} 10. Re1 {[%emt 0:00:43]} Nd5 {[%emt 0:01:39]} 11. Bg5 {[%emt 0:01:57]} Be6 {[%emt 0:09:49]} 12. Qd2 {[%emt 0:03:10]} Nc7 {[%emt 0:06:11]} 13. Bf1 {[%emt 0:05:31]} Re8 {[%emt 0:01:25]} 14. Bh6 {[%emt 0:04:06]} Bh8 {[%emt 0:02:15]} 15. Rad1 {[%emt 0:04:56]} Bd5 {[%emt 0:06:47]} 16. Ne5 {[%emt 0:01:56]} f6 {[%emt 0:01:28]} 17. Ng4 {[%emt 0:05:37]} Qd7 {[%emt 0:05:35]} 18. Bf4 {[%emt 0:03:32]} Bg7 {[%emt 0:03:30]} 19. Bg3 {[%emt 0:05:18]} h5 {[%emt 0:04:01]} 20. Ne3 {[%emt 0:04:15]} Bf7 {[%emt 0:00:26]} 21. c4 {[%emt 0:06:00]} e6 {[%emt 0:06:46]} 22. Bd3 {[%emt 0:03:33]} b6 {[%emt 0:13:15]} 23. Qc2 {[%emt 0:04:51]} Kh7 {[%emt 0:02:55]} 24. Nf1 {[%emt 0:00:44]} Rad8 {[%emt 0:03:20]} 25. Nh2 {[%emt 0:03:35]} Na6 {[%emt 0:05:45]} 26. Qe2 {[%emt 0:05:07]} Kg8 {[%emt 0:01:27]} 27. Nf3 {[%emt 0:00:11]} Re7 {[%emt 0:03:19]} 28. a3 {[%emt 0:02:30]} Qe8 {[%emt 0:00:42]} 29. b4 {[%emt 0:13:53]} Bf8 {[%emt 0:01:23]} 30. Be4 {[%emt 0:04:49]} Nc7 {[%emt 0:03:25]} 31. Qc2 {[%emt 0:01:04]} Bg7 {[%emt 0:00:23]} 32. Qa4 {[%emt 0:06:51]} b5 {[%emt 0:00:51]} 33. Qa5 {[%emt 0:00:09]} Rc8 {[%emt 0:11:29]} 34. Bd6 {[%emt 0:00:57]} Bf8 {[%emt 0:05:59]} 35. Bxe7 {[%emt 0:01:05]} Bxe7 {[%emt 0:00:04]} 36. Rc1 {[%emt 0:02:00]} f5 {[%emt 0:02:25]} 37. Bd3 {[%emt 0:00:30]} Bd6 {[%emt 0:00:34]} 38. cxb5 {[%emt 0:01:08]} cxb5 {[%emt 0:00:32]} 39. Ne5 {[%emt 0:04:45]} a6 {[%emt 0:00:09]} 40. Qb6 {[%emt 0:00:00]} Qe7 {[%emt 0:00:00]} 41. Rc6 {[%emt 0:03:52]} Rd8 {[%emt 0:04:19]} 42. Rec1 {[%emt 0:01:12]} Bxe5 {[%emt 0:15:37]} 43. dxe5 {[%emt 0:00:10]} Ne8 {[%emt 0:00:03]} 44. Be2 {[%emt 0:05:34]} g5 {[%emt 0:04:52]} 45. Rc8 {[%emt 0:02:35]} Rd5 {[%emt 0:02:36]} 46. R1c7 {[%emt 0:01:27]} Qf8 {[%emt 0:00:08]} 47. Bxh5 {[%emt 0:00:42]} Bxh5 {[%emt 0:05:56]} 48. Qxe6+ {[%emt 0:00:18]} Bf7 {[%emt 0:00:25]} 49. Rxf7 {[%emt 0:00:10]} Qxf7 {[%emt 0:00:06]} 50. Rxe8+ {[%emt 0:00:06]} 1-0

[Event "POL-chT DMP Ekstraliga 2019"]
[Site "Katowice"]
[Date "2019.09.01"]
[Round "5.12"]
[White "Kiolbasa, Oliwia"]
[Black "Osmak, Iulija"]
[Result "0-1"]
[ECO "C16"]
[WhiteElo "2244"]
[BlackElo "2414"]
[Annotator "ChessBase"]
[PlyCount "114"]
[EventDate "2019.08.28"]
[EventType "team-tourn"]
[EventCountry "POL"]
[SourceTitle "playchess.com"]
[Source "ChessBase"]
[SourceQuality "1"]
[TimeControl "40/5400+30:1800+30"]

1. e4 {[%emt 0:00:00]} e6 {[%emt 0:00:00]} 2. d4 {[%emt 0:00:00]} d5 {[%emt 0:00:00]} 3. Nc3 {[%emt 0:00:00]} Bb4 {[%emt 0:00:00]} 4. e5 {[%emt 0:00:06]} Ne7 {[%emt 0:00:00]} 5. a3 {[%emt 0:00:30]} Bxc3+ {[%emt 0:00:00]} 6. bxc3 {[%emt 0:00:07]} c5 {[%emt 0:00:00]} 7. h4 {[%emt 0:00:41]} Qc7 {[%emt 0:00:00]} 8. Nf3 {[%emt 0:04:51]} b6 {[%emt 0:00:18]} 9. h5 {[%emt 0:00:09]} h6 {[%emt 0:00:04]} 10. Bb5+ {[%emt 0:03:29]} Bd7 {[%emt 0:00:06]} 11. Bd3 {[%emt 0:00:05]} Ba4 {[%emt 0:00:08]} 12. O-O {[%emt 0:00:07]} Nd7 {[%emt 0:01:36]} 13. Re1 {[%emt 0:00:08]} O-O-O {[%emt 0:05:20]} 14. Rb1 {[%emt 0:00:42]} c4 {[%emt 0:01:21]} 15. Bf1 {[%emt 0:00:07]} g6 {[%emt 0:06:59]} 16. hxg6 {[%emt 0:18:34]} fxg6 {[%emt 0:06:16]} 17. g3 {[%emt 0:00:15]} Rdf8 {[%emt 0:08:13]} 18. Bh3 {[%emt 0:06:08]} Nf5 {[%emt 0:03:00]} 19. Nh2 {[%emt 0:03:33]} g5 {[%emt 0:03:38]} 20. Rb2 {[%emt 0:03:04]} Qd8 {[%emt 0:03:03]} 21. Qh5 {[%emt 0:06:32]} Qe7 {[%emt 0:04:28]} 22. Nf1 {[%emt 0:02:58]} Nb8 {[%emt 0:13:20]} 23. Ne3 {[%emt 0:07:14]} Nxe3 {[%emt 0:02:38]} 24. Bxe3 {[%emt 0:01:54]} Na6 {[%emt 0:00:30]} 25. Rf1 {[%emt 0:04:08]} Nc7 {[%emt 0:00:48]} 26. Bd2 {[%emt 0:06:38]} Kb7 {[%emt 0:08:52]} 27. Bg2 {[%emt 0:03:14]} Qxa3 {[%emt 0:03:06]} 28. Rfb1 {[%emt 0:02:26]} Qe7 {[%emt 0:01:34]} 29. Ra1 {[%emt 0:00:59]} Bc6 {[%emt 0:00:51]} 30. Rb4 {[%emt 0:03:26]} Rfg8 {[%emt 0:07:13]} 31. Qd1 {[%emt 0:03:37]} h5 {[%emt 0:01:03]} 32. Qc1 {[%emt 0:00:21]} Nb5 {[%emt 0:07:05]} 33. Qb1 {[%emt 0:04:10]} Qd7 {[%emt 0:01:20]} 34. Rxc4 {[%emt 0:05:04]} dxc4 {[%emt 0:00:41]} 35. Qxb5 {[%emt 0:00:04]} Rc8 {[%emt 0:01:57]} 36. Bxc6+ {[%emt 0:04:56]} Rxc6 {[%emt 0:00:32]} 37. Bxg5 {[%emt 0:00:04]} Rc7 {[%emt 0:01:07]} 38. Qxd7 {[%emt 0:04:05]} Rxd7 {[%emt 0:00:04]} 39. f4 {[%emt 0:00:03]} a5 40. Ra4 {[%emt 0:00:00]} Kc6 {[%emt 0:00:00]} 41. Kf2 {[%emt 0:06:02]} Kd5 {[%emt 0:09:14]} 42. Ra1 {[%emt 0:05:05]} Ra7 {[%emt 0:02:36]} 43. Kf3 {[%emt 0:03:50]} b5 {[%emt 0:03:12]} 44. Ke3 {[%emt 0:05:09]} Rha8 {[%emt 0:04:31]} 45. f5 {[%emt 0:04:10]} exf5 {[%emt 0:00:56]} 46. Kf4 {[%emt 0:00:07]} b4 {[%emt 0:04:13]} 47. Rb1 {[%emt 0:02:23]} Rb7 {[%emt 0:01:10]} 48. Kxf5 {[%emt 0:01:39]} b3 {[%emt 0:01:03]} 49. cxb3 {[%emt 0:00:11]} cxb3 {[%emt 0:02:27]} 50. e6 {[%emt 0:04:52]} b2 {[%emt 0:06:36]} 51. Bf6 {[%emt 0:02:17]} a4 {[%emt 0:01:25]} 52. c4+ {[%emt 0:00:07]} Kxc4 {[%emt 0:00:04]} 53. d5 {[%emt 0:00:04]} Kxd5 {[%emt 0:02:26]} 54. Bxb2 {[%emt 0:00:25]} Rf8+ {[%emt 0:01:41]} 55. Kg6 {[%emt 0:00:05]} Kxe6 {[%emt 0:00:06]} 56. Kxh5 {[%emt 0:01:29]} Rf5+ {[%emt 0:00:33]} 57. Kh6 {[%emt 0:01:01]} Re5 {[%emt 0:00:18]} 0-1

[Event "POL-chT DMP Ekstraliga 2019"]
[Site "Katowice"]
[Date "2019.09.01"]
[Round "5.15"]
[White "Skawinski, Arkadiusz"]
[Black "Markowski, Tomasz"]
[Result "0-1"]
[ECO "B40"]
[WhiteElo "2398"]
[BlackElo "2537"]
[Annotator "ChessBase"]
[PlyCount "116"]
[EventDate "2019.08.28"]
[EventType "team-tourn"]
[EventCountry "POL"]
[SourceTitle "playchess.com"]
[Source "ChessBase"]
[SourceQuality "1"]
[TimeControl "40/5400+30:1800+30"]

1. e4 {[%emt 0:00:00]} c5 {[%emt 0:00:00]} 2. Nf3 {[%emt 0:00:00]} e6 {[%emt 0:00:00]} 3. c3 {[%emt 0:00:00]} Nf6 {[%emt 0:00:00]} 4. e5 {[%emt 0:00:00]} Nd5 {[%emt 0:00:00]} 5. d4 {[%emt 0:00:00]} cxd4 {[%emt 0:00:06]} 6. cxd4 {[%emt 0:00:00]} d6 {[%emt 0:00:06]} 7. Bc4 {[%emt 0:00:00]} Be7 {[%emt 0:00:51]} 8. O-O {[%emt 0:00:04]} O-O {[%emt 0:00:27]} 9. Qe2 {[%emt 0:00:03]} Nc6 {[%emt 0:00:19]} 10. Re1 {[%emt 0:00:04]} Nb6 {[%emt 0:03:33]} 11. Bb3 {[%emt 0:04:42]} d5 {[%emt 0:00:20]} 12. Nc3 {[%emt 0:01:12]} Bd7 {[%emt 0:00:09]} 13. a3 {[%emt 0:08:37]} f6 {[%emt 0:07:46]} 14. exf6 {[%emt 0:06:47]} Bxf6 {[%emt 0:00:11]} 15. Qd3 {[%emt 0:14:15]} Be8 {[%emt 0:05:38]} 16. Rxe6 {[%emt 0:03:58]} Bg6 {[%emt 0:02:44]} 17. Qd2 {[%emt 0:13:48]} Qd7 {[%emt 0:05:16]} 18. Re1 {[%emt 0:03:06]} Nc4 {[%emt 0:06:10]} 19. Bxc4 {[%emt 0:04:31]} dxc4 {[%emt 0:00:08]} 20. Ne5 {[%emt 0:00:28]} Bxe5 {[%emt 0:03:49]} 21. dxe5 {[%emt 0:00:08]} Qxd2 {[%emt 0:01:11]} 22. Bxd2 {[%emt 0:00:19]} Nd4 {[%emt 0:00:07]} 23. Rad1 {[%emt 0:05:59]} Nc2 {[%emt 0:05:26]} 24. Re4 {[%emt 0:00:31]} Bxe4 {[%emt 0:09:36]} 25. Nxe4 {[%emt 0:00:06]} a5 {[%emt 0:01:54]} 26. Rc1 {[%emt 0:03:13]} Nd4 {[%emt 0:01:10]} 27. Rxc4 {[%emt 0:00:06]} Nb3 {[%emt 0:06:14]} 28. Bg5 {[%emt 0:03:49]} h6 {[%emt 0:02:21]} 29. Be3 {[%emt 0:06:18]} Rac8 {[%emt 0:00:50]} 30. Rxc8 {[%emt 0:00:23]} Rxc8 {[%emt 0:00:02]} 31. Nd6 {[%emt 0:05:54]} Rc2 {[%emt 0:01:45]} 32. e6 {[%emt 0:07:39]} Kf8 {[%emt 0:03:12]} 33. Nf5 {[%emt 0:01:04]} Rxb2 {[%emt 0:09:13]} 34. g4 {[%emt 0:00:56]} Re2 {[%emt 0:07:24]} 35. Kf1 {[%emt 0:00:56]} Rc2 {[%emt 0:01:27]} 36. g5 {[%emt 0:03:13]} g6 {[%emt 0:04:14]} 37. Nh4 {[%emt 0:03:19]} hxg5 {[%emt 0:00:22]} 38. Bxg5 {[%emt 0:02:30]} Rc6 {[%emt 0:05:08]} 39. Nxg6+ {[%emt 0:00:43]} Ke8 {[%emt 0:00:01]} 40. Nf4 {[%emt 0:00:00]} Nd4 {[%emt 0:00:00]} 41. Nd5 {[%emt 0:07:07]} Nxe6 {[%emt 0:00:46]} 42. Be3 {[%emt 0:01:05]} b5 {[%emt 0:02:44]} 43. Ke1 {[%emt 0:08:13]} Kf7 {[%emt 0:01:10]} 44. Bd2 {[%emt 0:00:53]} Nd4 {[%emt 0:02:38]} 45. Kf1 {[%emt 0:09:16]} Rc5 {[%emt 0:03:24]} 46. Ne3 {[%emt 0:01:28]} Nb3 {[%emt 0:00:30]} 47. Be1 {[%emt 0:00:02]} Rc1 {[%emt 0:02:32]} 48. Ke2 {[%emt 0:00:11]} Ke6 {[%emt 0:02:20]} 49. f4 {[%emt 0:01:25]} Nd4+ {[%emt 0:03:42]} 50. Kd2 {[%emt 0:02:53]} Ra1 {[%emt 0:00:57]} 51. Kd3 {[%emt 0:00:06]} Rxe1 {[%emt 0:02:03]} 52. Kxd4 {[%emt 0:00:04]} Ra1 {[%emt 0:00:28]} 53. Nc2 {[%emt 0:02:57]} Rh1 {[%emt 0:00:14]} 54. Kc3 {[%emt 0:00:53]} Kd5 {[%emt 0:00:37]} 55. Ne3+ {[%emt 0:00:28]} Kc5 {[%emt 0:00:43]} 56. Ng4 {[%emt 0:00:12]} Ra1 {[%emt 0:01:09]} 57. Kb3 {[%emt 0:00:50]} Rb1+ {[%emt 0:00:29]} 58. Kc3 {[%emt 0:00:10]} a4 {[%emt 0:00:39] Kd4+} 0-1

[Event "POL-chT DMP Ekstraliga 2019"]
[Site "Katowice"]
[Date "2019.09.01"]
[Round "5.16"]
[White "Nasuta, Grzegorz"]
[Black "Luch, Michal"]
[Result "1/2-1/2"]
[ECO "B01"]
[WhiteElo "2533"]
[BlackElo "2393"]
[Annotator "ChessBase"]
[PlyCount "57"]
[EventDate "2019.08.28"]
[EventType "team-tourn"]
[EventCountry "POL"]
[SourceTitle "playchess.com"]
[Source "ChessBase"]
[SourceQuality "1"]
[TimeControl "40/5400+30:1800+30"]

1. e4 {[%emt 0:00:00]} d5 {[%emt 0:00:00]} 2. exd5 {[%emt 0:00:00]} Qxd5 {[%emt 0:00:00]} 3. Nf3 {[%emt 0:00:00]} Nf6 {[%emt 0:00:04]} 4. Be2 {[%emt 0:00:11]} e5 {[%emt 0:11:20]} 5. Nc3 {[%emt 0:02:08]} Qa5 {[%emt 0:01:04]} 6. O-O {[%emt 0:15:43]} e4 {[%emt 0:26:43]} 7. Nd4 {[%emt 0:10:54]} Bd6 {[%emt 0:00:02]} 8. Ndb5 {[%emt 0:06:38]} Be7 {[%emt 0:00:35]} 9. d3 {[%emt 0:14:59]} c6 {[%emt 0:05:52]} 10. Nd4 {[%emt 0:00:06]} exd3 {[%emt 0:00:12]} 11. Bxd3 {[%emt 0:04:34]} O-O {[%emt 0:00:03]} 12. Qf3 {[%emt 0:02:02]} Bg4 {[%emt 0:05:38]} 13. Qg3 {[%emt 0:00:22]} Rd8 {[%emt 0:00:10]} 14. Nf3 {[%emt 0:14:37]} Bd6 {[%emt 0:15:44]} 15. Bf4 {[%emt 0:03:21]} Bxf4 {[%emt 0:03:05]} 16. Qxf4 {[%emt 0:00:08]} Bxf3 {[%emt 0:10:12]} 17. Qxf3 {[%emt 0:00:07]} Na6 {[%emt 0:00:01]} 18. a3 {[%emt 0:01:18]} Nc7 {[%emt 0:02:46]} 19. Rfe1 {[%emt 0:01:15]} Ne6 {[%emt 0:00:55]} 20. Ne4 {[%emt 0:09:03]} Nxe4 {[%emt 0:00:35]} 21. Qxe4 {[%emt 0:00:10]} g6 {[%emt 0:00:34]} 22. Qe5 {[%emt 0:03:49]} Qxe5 {[%emt 0:06:13]} 23. Rxe5 {[%emt 0:00:02]} Nf4 {[%emt 0:00:17]} 24. Bc4 {[%emt 0:05:30]} Rd4 {[%emt 0:00:02]} 25. Bb3 {[%emt 0:00:50]} Rad8 {[%emt 0:00:59]} 26. Rae1 {[%emt 0:00:27]} Kf8 {[%emt 0:04:44]} 27. g3 {[%emt 0:00:59]} Nd5 {[%emt 0:00:01]} 28. Kg2 {[%emt 0:01:08]} Nf6 {[%emt 0:01:32]} 29. h3 {[%emt 0:01:54]} 1/2-1/2